Workbook

Sheet A. Near Lane; Crash Cush
A1: CONCRETE BARRIER LENGTH OF NEED v1.0
A2: For FDOT Standard Plans, Index 521-001 | C2: Roadway Name / Feature:
C3: FPID:
C4: Designer:
A5: TAB A: SHIELDING OF NEAREST LANE USING CONCRETE BARRIER & CRASH CUSHION
B20: Input: | C20: Comment:
A21: Direction of Near Lane Traffic | B21: Westbound | C21: for relative stationing calculations (Westbound shown, others similar)
A22: AADT (Vehicles Per Day) | B22: 10000
A23: Design Speed (MPH) | B23: 55
A24: Approach Face of Hazard Station | B24: 1000 | C24: enter as total feet (do not input a plus sign)
A25: Lateral Area Concern, LA (Ft.) | B25: 24 | C25: the lesser distance to the 'Clear Zone Limit' or 'Back of Hazard', measured from the 'Edge of Traffic Lane'
A26: Lateral Offset of Crash Cushion, Y (Ft.) | B26: 10 | C26: the Crash Cushion's offset from the 'Edge of Traffic Lane', measured from the face of Crash Cushion at the Start LON location (see Index 544-001 and corresponding APL drawing)
B27: Output:
A28: Runout Length, LR (Ft.) | B28: =INDEX(value,MATCH(B23,row,-1),MATCH(B22,col,1)) -> 265
A29: Length of Need, X (Ft.) | B29: =(B25-B26)/(B25/B28) -> 154.5833333 | C29: AASHTO RDG (5-3)
A30: Begin/End LON Station (Near Lane Approach) | B30: =IF(OR(B21="Westbound",B21="Southbound"),(B24+B29),(B24-B29)) -> 1154.583333
A32: Trailing End Design Note:
A33: When the facility is a two-lane two-way road with the Hazard or barrier within the Far Lane's Clear Zone Limit, design the Begin/End LON Station for a Crash Cushion on the opposite barrier end using Tab B. For cases where an opposing lane is not within the Clear Zone distance from the Hazard or barrier, the trailing end of the barrier may be terminated adjacent to the trailing end of the Hazard. For Guardrail Approach Terminals, See Index 536-001.

Sheet B. Two-Lane Two-Way; Crash Cush
A1: CONCRETE BARRIER LENGTH OF NEED v1.0
A2: For FDOT Standard Plans, Index 521-001 | C2: Roadway Name / Feature:
C3: FPID:
C4: Designer:
A5: TAB B: SHIELDING FOR FAR LANE OF 2-LANE 2-WAY ROAD: CONCRETE BARRIER & CRASH CUSHION
B20: Input: | C20: Comment:
A21: Direction of Far Lane Traffic | B21: Eastbound | C21: for relative stationing calculations (Eastbound shown, others similar)
A22: AADT (Vehicles Per Day) | B22: 10000
A23: Design Speed (MPH) | B23: 65
A24: Approach Face of Hazard Station | B24: 1000 | C24: enter as total feet (do not input a plus sign)
A25: Lateral Area Concern, LA (Ft.) | B25: 24 | C25: the lesser distance to the 'Clear Zone Limit' or 'Back of Hazard', measured from the 'Edge of Traffic Lane' (Far Lane)
A26: Lateral Offset of Crash Cushion, Y (Ft.) | B26: 10 | C26: the Crash Cushion's offset from the 'Edge of Traffic Lane' (Far Lane), measured from the face of Crash Cushion at the Start LON location (see Index 544-001 and corresponding APL drawing)
B27: Output:
A28: Runout Length, LR (Ft.) | B28: =INDEX(value,MATCH(B23,row,-1),MATCH(B22,col,1)) -> 330
A29: Length of Need, X (Ft.) | B29: =(B25-B26)/(B25/B28) -> 192.5 | C29: AASHTO RDG (5-3)
A30: Begin/End LON Station (Far Lane Approach) | B30: =IF(OR(B21="Westbound",B21="Southbound"),(B24+B29),(B24-B29)) -> 807.5
A32: Near Lane Design Note:
A33: If only the barrier is within the Clear Zone Limit of the "Far Lane" (Hazard is outside the Clear Zone Limit), apply a Crash Cushion with the Begin/End LON Station located 10 Ft. in advance of the Approach Face of Hazard Station (Locate at X = 10 Ft., as shown on this Tab) For the opposite end of the barrier, design the Begin/End LON Station of a Crash Cushion for the "Near Lane" approach using Tab A. For Guardrail Approach Terminals, See Index 536-001.

Sheet C. Near Lane; Sloped End
A1: CONCRETE BARRIER LENGTH OF NEED v1.0
A2: For FDOT Standard Plans, Index 521-001 | C2: Roadway Name / Feature:
C3: FPID:
C4: Designer:
A5: TAB C: SHIELDING OF NEAREST LANE: CURB & GUTTER BARRIER WITH SLOPED END TREATMENT
B20: Input: | C20: Comment:
A21: Direction of Near Lane Traffic | B21: Westbound | C21: for relative stationing calculations (Westbound shown, others similar)
A22: AADT (Vehicles Per Day) | B22: 10000
A23: Design Speed (MPH) | B23: 45 | C23: 45 MPH is maximum permitted for Curb and Gutter Barrier
A24: Approach Face of Hazard Station | B24: 1000 | C24: enter as total feet (do not input a plus sign)
A25: Lateral Area Concern, LA (Ft.) | B25: 24 | C25: the lesser distance to the 'Clear Zone Limit' or 'Back of Hazard', measured from the 'Edge of Traffic Lane'
A26: Lateral Offset of Barrier, Y (Ft.) | B26: 10 | C26: the Barrier's offset from the 'Edge of Traffic Lane', measured from the Barrier Gutter Line at the Begin/End LON Station
B27: Output:
A28: Runout Length, LR (Ft.) | B28: =INDEX(value,MATCH(B23,row,-1),MATCH(B22,col,1)) -> 195
A29: Length of Need, X (Ft.) | B29: =(B25-B26)/(B25/B28) -> 113.75 | C29: AASHTO RDG (5-3)
A30: Begin/End LON Station (Near Lane Approach) | B30: =IF(OR(B21="Westbound",B21="Southbound"),(B24+B29),(B24-B29)) -> 1113.75
A32: Trailing End Design Note:
A33: When the facility is a two-lane two-way road with the Hazard or barrier within the Far Lane's Clear Zone Limit, design the Begin/End LON Station for a Sloped End Treatment on the opposite barrier end using Tab D. For cases where an opposing lane is not within the Clear Zone distance from the Hazard or barrier, the trailing end of the barrier may be terminated adjacent to the trailing end of the Hazard. For Guardrail Approach Terminals, See Index 536-001.

Sheet D. Two-Lane Two-Way; Sloped End
A1: CONCRETE BARRIER LENGTH OF NEED v1.0
A2: For FDOT Standard Plans, Index 521-001 | C2: Roadway Name / Feature:
C3: FPID:
C4: Designer:
A5: TAB D: SHIELDING FOR FAR LANE OF 2-LANE 2-WAY ROAD: CURB & GUTTER BARRIER WITH SLOPED END TREATMENT
B20: Input: | C20: Comment:
A21: Direction of Far Lane Traffic | B21: Eastbound | C21: for relative stationing calculations (Eastbound shown, others similar)
A22: AADT (Vehicles Per Day) | B22: 10000
A23: Design Speed (MPH) | B23: 35 | C23: per the FDM, 35 MPH is maximum permitted for Curb and Gutter Barrier with a Sloped End Treatment
A24: Approach Face of Hazard Station | B24: 1000 | C24: enter as total feet (do not input a plus sign)
A25: Lateral Area Concern, LA (Ft.) | B25: 24 | C25: the lesser distance to the 'Clear Zone Limit' or 'Back of Hazard', measured from the 'Edge of Traffic Lane' (Far Lane)
A26: Lateral Offset of Barrier, Y (Ft.) | B26: 10 | C26: the Barrier's offset from the 'Edge of Traffic Lane' (Far Lane), measured from the Barrier Gutter Line at the Begin/End LON Station
B27: Output:
A28: Runout Length, LR (Ft.) | B28: =INDEX(value,MATCH(B23,row,-1),MATCH(B22,col,1)) -> 135
A29: Length of Need, X (Ft.) | B29: =(B25-B26)/(B25/B28) -> 78.75 | C29: AASHTO RDG (5-3)
A30: Begin/End LON Station (Far Lane Approach) | B30: =IF(OR(B21="Westbound",B21="Southbound"),(B24+B29),(B24-B29)) -> 921.25
A32: Near Lane Design Note:
A33: If only the barrier is within the Clear Zone Limit of the "Far Lane" (Hazard is outside the Clear Zone Limit), apply a Sloped End Treatment with the Begin/End LON Station located adjacent to the Approach Face of Hazard Station (Locate the end tip of the Sloped End Treatment at X = 25 Ft. or X = 10 Ft. for the 25 Ft length and 10 Ft. length Sloped End Treatment options, respectively) For the opposite end of the barrier, design the Begin/End LON Station of a Sloped End Treatment for the "Near Lane" approach using Tab C. For Guardrail Approach Terminals, See Index 536-001

Sheet RDG Data
A1: Runout Lengths, LR (Ft.):
A2: Design Speed (MPH) | B2: ADT (VPD Threshold)
B3: 0 | C3: 1000 | D3: 5000 | E3: 10000
A4: 80 | B4: 330 | C4: 380 | D4: 430 | E4: 470
A5: 75 | B5: =(B4+B6)/2 -> 290 | C5: =(C4+C6)/2 -> 335 | D5: =(D4+D6)/2 -> 380 | E5: =(E4+E6)/2 -> 415
A6: 70 | B6: 250 | C6: 290 | D6: 330 | E6: 360
A7: 65 | B7: =(B6+B8)/2 -> 225 | C7: =(C6+C8)/2 -> 250 | D7: =(D6+D8)/2 -> 290 | E7: =(E6+E8)/2 -> 330
A8: 60 | B8: 200 | C8: 210 | D8: 250 | E8: 300
A9: 55 | B9: =(B8+B10)/2 -> 175 | C9: =(C8+C10)/2 -> 185 | D9: =(D8+D10)/2 -> 220 | E9: =(E8+E10)/2 -> 265
A10: 50 | B10: 150 | C10: 160 | D10: 190 | E10: 230
A11: 45 | B11: =(B10+B12)/2 -> 125 | C11: =(C10+C12)/2 -> 135 | D11: =(D10+D12)/2 -> 160 | E11: =(E10+E12)/2 -> 195
A12: 40 | B12: 100 | C12: 110 | D12: 130 | E12: 160
A13: 35 | B13: =(B14+B12)/2 -> 85 | C13: =(C14+C12)/2 -> 95 | D13: =(D14+D12)/2 -> 110 | E13: =(E14+E12)/2 -> 135
A14: 30 | B14: 70 | C14: 80 | D14: 90 | E14: 110
A16: NOTE: The above values are taken from the AASHTO RDG, Table 5-10(b)
A19: Northbound
A20: Eastbound
A21: Westbound
A22: Southbound
A24: Yes
A25: No

Sheet Policy
A1: Design Basis: The standard method of determining guardrail placement for shielding hazards is based on the Runout Length and the Length of Need calculation in the AASHTO Roadside Design Guide (RDG), 4th Edition
A5: FDOT Design Tool Note: No warranty, expressed or implied, is made by the Florida Department of Transportation as to the accuracy and functioning of any programs or the results they produce, nor shall the fact of distribution constitute any such warranty, and no responsibility is assumed by the Florida Department of Transportation in any connection therewith. By using this program, you are agreeing to the above disclaimer.

Sheet Version History
A1: Version: | B1: Released: | C1: Changes:
A2: v1.0 | B2: 2017-11-01 | C2: initial release
